Workbook

Sheet Plan1 (hidden)

Sheet CURVA_ABC
A2: UNIVERSIDADE FEDERAL DE ALAGOAS - UFAL
A3: SUPERINTENDÊNCIA DE INFRAESTRUTURA - SINFRA
A4: GERENCIA DE PROJETOS,OBRAS E SERVIÇOS DE ENGENHARIA - GPOS
A6: ORÇAMENTO BÁSICO ESTIMATIVO PARA REFORMA DO AUDITÓRIO DO ESPAÇO CULTURAL.
A7: CURVA ABC
A9: ITEM | B9: DESCRIÇÃO DOS SERVIÇOS | C9: FONTE | D9: CÓDIGO | E9: UND | F9: QUANT. | G9: Custo UNIT. de Referência | H9: Custo TOTAL de Referência | I9: Percentual | J9: Percentual Acumulado | K9: Número de Itens | L9: Classe
A10: 8.1 | B10: Telhamento com telha de alumínio, ondulada, dupla, termoacustica, esp= 0,7 mm, com enchimento em poliuretano/lã de vidro, esp = 50 mm, inclusive elementos de fixação, pré-pintadas com pintura eletrostática a pó na cor branco, incluindo acabamento tapa onda (fornecimento e montagem) | C10: COMPOSIÇÃO | D10: 119 | E10: m² | F10: =[2]ORÇAMENTO!$F$70 -> 857 | G10: =[2]ORÇAMENTO!$G$70 -> 137.09276 | H10: =F10*G10 -> 117488.4953 | I10: =H10/$H$177 -> 0.2182873911 | J10: =I10 -> 0.2182873911 | K10: 1 | L10: A
A11: 16.1 | B11: Piso em assoalho de madeira lei (Pau D´Arco, similar ou de qualidade superior) - Extra, réguas macho e fêmea 20cm x 3cm, elevado instalado em barrotes de madeira (palco em madeira) | C11: COMPOSIÇÃO | D11: 138 | E11: m² | F11: =[2]ORÇAMENTO!$F$194 -> 129 | G11: =[2]ORÇAMENTO!$G$194 -> 365.899 | H11: =F11*G11 -> 47200.971 | I11: 0.08769689993 | J11: =I11+J10 -> 0.305984291 | K11: 2 | L11: A
A12: 13.2.1 | B12: Forro de gesso acartonado, acabamento em pintura PVA Latex na cor branco, com isolamento em lã de vidro 25mm, placa 625 x 625mm e perfil T, instalado | C12: COMPOSIÇÃO | D12: 137 | E12: m² | F12: =[2]ORÇAMENTO!$F$178 -> 411.57 | G12: =[2]ORÇAMENTO!$G$178 -> 86.87 | H12: 35753.0859 | I12: 0.06642733676 | J12: =I12+J11 -> 0.3724116278 | K12: 3 | L12: A
A13: 15.3 | B13: Condicionador de ar tipo split piso-teto, 60000 btu - FORNECIMENTO E INSTALACAO | C13: COMPOSIÇÃO | D13: 160 | E13: und | F13: =[2]ORÇAMENTO!$F$191 -> 4 | G13: =[2]ORÇAMENTO!$G$191 -> 7758.14 | H13: 31032.56 | I13: 0.05765685008 | J13: 0.4300684779 | K13: 4 | L13: A
A14: 17.9 | B14: Recuperação das cadeiras de madeira, c/ aproveitamento de 75% | C14: COMPOSIÇÃO | D14: 152 | E14: und | F14: =[2]ORÇAMENTO!$F$212 -> 311 | G14: =[2]ORÇAMENTO!$G$212 -> 89.823625 | H14: 27935.14737 | I14: 0.05190202176 | J14: 0.4819704996 | K14: 5 | L14: A
A15: 18.2 | B15: ENCARREGADO GERAL DE OBRAS COM ENCARGOS COMPLEMENTARES | C15: SINAPI | D15: 93572 | E15: mês | F15: =[2]ORÇAMENTO!$F$220 -> 6 | G15: =[2]ORÇAMENTO!$G$220 -> 3001.26 | H15: 18007.56 | I15: 0.03345709111 | J15: 0.5154275907 | K15: 6 | L15: A
A16: 18.3 | B16: ALMOXARIFE COM ENCARGOS COMPLEMENTARES | C16: SINAPI | D16: 93563 | E16: mês | F16: =[2]ORÇAMENTO!$F$221 -> 6 | G16: =[2]ORÇAMENTO!$G$221 -> 2732.23 | H16: 16393.38 | I16: 0.03045803031 | J16: 0.545885621 | K16: 7 | L16: A
A17: 13.1.1 | B17: Revestimento para parede em MDF com revestimento melamínico mdeirado, tipo lambri, colado, superfície polida | C17: COMPOSIÇÃO | D17: 136 | E17: m² | F17: =[2]ORÇAMENTO!$F$173 -> 137.41 | G17: =[2]ORÇAMENTO!$G$173 -> 109.0155 | H17: 14979.81986 | I17: 0.02783171055 | J17: 0.5737173316 | K17: 8 | L17: A
A18: 9.13 | B18: Lâmpada LED Tubular T8 Bivolt 1,20m 18/20W, Base G13 (Iluminação indireta Platéia) | C18: COMPOSIÇÃO | D18: 114 | E18: und | F18: =[2]ORÇAMENTO!$F$86 -> 168 | G18: =[2]ORÇAMENTO!$G$86 -> 71.215 | H18: 11964.12 | I18: 0.02222870022 | J18: 0.5959460318 | K18: 9 | L18: A
A19: 16.3 | B19: Restauro - Restauração do piso de madeira compreendendo substituição de peças de apoio até 20%, raspagem, calafetagem, enceramento e parquetagem (obs: usar para substituição as peças da área de ampliação do palco ) (restauro do piso da platéia) | C19: COMPOSIÇÃO | D19: 140 | E19: m² | F19: =[2]ORÇAMENTO!$F$196 -> 232.5 | G19: =[2]ORÇAMENTO!$G$196 -> 50.3425 | H19: 11704.63125 | I19: 0.02174658389 | J19: 0.6176926157 | K19: 10 | L19: A
A20: 8.2 | B20: Imunização de madeira contra cupim, com aplicação de 01 demão de Pentox, similar ou qualidade superior | C20: COMPOSIÇÃO | D20: 139 | E20: m² | F20: =[2]ORÇAMENTO!$F$71 -> 857 | G20: =[2]ORÇAMENTO!$G$71 -> 12.94025 | H20: 11089.79425 | I20: 0.02060424936 | J20: 0.6382968651 | K20: 11 | L20: A
A21: 15.2 | B21: Condicionador de ar tipo split piso-teto, 30000 btu - FORNECIMENTO E INSTALACAO | C21: COMPOSIÇÃO | D21: 159 | E21: und | F21: =[2]ORÇAMENTO!$F$190 -> 2 | G21: =[2]ORÇAMENTO!$G$190 -> 5199.83 | H21: 10399.66 | I21: 0.01932201654 | J21: 0.6576188816 | K21: 12 | L21: A
A22: 11.1 | B22: IMPERMEABILIZACAO DE SUPERFICIE COM MANTA ASFALTICA (COM POLIMEROS TIPO APP), E=4 MM (Laje e Calhas) | C22: SINAPI | D22: 83738 | E22: m² | F22: =[2]ORÇAMENTO!$F$152 -> 122 | G22: =[2]ORÇAMENTO!$G$152 -> 75.81 | H22: 9248.82 | I22: 0.01718381687 | J22: 0.6748026985 | K22: 13 | L22: A
A23: 13.1.2 | B23: Painel acústico constituído de gradeamento em compensado naval 18mm, preenchido com lã de pet acústica 15mm dens = 15kg/m3 e acabamento em tecido ortofônico e alisar em madeira maciça 40mmx15mm boleada nas bordas tratada com seladora - aplicado | C23: ORSE (Insumos) | D23: 12779 | E23: m² | F23: =[2]ORÇAMENTO!$F$174 -> 67.78 | G23: =[2]ORÇAMENTO!$G$174 -> 134 | H23: 9082.52 | I23: 0.0168748403 | J23: 0.6916775388 | K23: 14 | L23: A
A24: 2.1.3 | B24: EXECUÇÃO DE SANITÁRIO E VESTIÁRIO EM CANTEIRO DE OBRA EM CHAPA DE MADEIRA COMPENSADA, NÃO INCLUSO MOBILIÁRIO. AF_02/2016 | C24: SINAPI | D24: 93212 | E24: m² | F24: =[2]ORÇAMENTO!$F$16 -> 14.5 | G24: =[2]ORÇAMENTO!$G$16 -> 547.77 | H24: 7942.665 | I24: 0.01475705018 | J24: 0.7064345889 | K24: 15 | L24: A
A25: 16.6 | B25: PISO EM GRANILITE, MARMORITE OU GRANITINA ESPESSURA 8 MM, INCLUSO JUNTAS DE DILATACAO PLASTICAS (Piso do corredor executar na mesma cor do piso existente e piso do camarim) | C25: SINAPI | D25: 84191 | E25: m² | F25: =[2]ORÇAMENTO!$F$199 -> 74.966 | G25: =[2]ORÇAMENTO!$G$199 -> 103.27 | H25: 7741.73882 | I25: 0.01438374 | J25: 0.7208183289 | K25: 16 | L25: A
A26: 2.1.4 | B26: EXECUÇÃO DE REFEITÓRIO EM CANTEIRO DE OBRA EM CHAPA DE MADEIRA COMPENSADA, NÃO INCLUSO MOBILIÁRIO E EQUIPAMENTOS. AF_02/2016 | C26: SINAPI | D26: 93210 | E26: m² | F26: =[2]ORÇAMENTO!$F$17 -> 19.9 | G26: =[2]ORÇAMENTO!$G$17 -> 353.56 | H26: 7035.844 | I26: 0.01307222487 | J26: 0.7338905538 | K26: 17 | L26: A
A27: 18.1 | B27: ENGENHEIRO CIVIL DE OBRA JUNIOR COM ENCARGOS COMPLEMENTARES(4H/DIA) | C27: SINAPI | D27: 90777 | E27: h | F27: =[2]ORÇAMENTO!$F$219 -> 96 | G27: =[2]ORÇAMENTO!$G$219 -> 68.64 | H27: 6589.44 | I27: 0.01224282992 | J27: 0.7461333837 | K27: 18 | L27: A
A28: 17.10 | B28: PINTURA VERNIZ POLIURETANO BRILHANTE EM MADEIRA, TRES DEMAOS | C28: COMPOSIÇÃO | D28: 155 | E28: m² | F28: =[2]ORÇAMENTO!$F$213 -> 311 | G28: =[2]ORÇAMENTO!$G$213 -> 18.331345 | H28: 5701.048295 | I28: 0.01059224527 | J28: 0.756725629 | K28: 19 | L28: A
A29: 9.12 | B29: Luminária de embutir aberta c/ 2 lâmpadas tubo led T8 2 x 18/20 w Base G13 (Palco e Camarim) | C29: COMPOSIÇÃO | D29: 113 | E29: und | F29: =[2]ORÇAMENTO!$F$85 -> 19 | G29: =[2]ORÇAMENTO!$G$85 -> 298.03 | H29: 5662.57 | I29: 0.01052075464 | J29: 0.7672463837 | K29: 20 | L29: A
A30: 2.1.2 | B30: EXECUÇÃO DE ALMOXARIFADO EM CANTEIRO DE OBRA EM CHAPA DE MADEIRA COMPENSADA, INCLUSO PRATELEIRAS. AF_02/2016 | C30: SINAPI | D30: 93208 | E30: m² | F30: =[2]ORÇAMENTO!$F$15 -> 12.4 | G30: =[2]ORÇAMENTO!$G$15 -> 443.11 | H30: 5494.564 | I30: 0.0102086084 | J30: 0.7774549921 | K30: 21 | L30: A
A31: 2.2.2 | B31: Remoção de telhamento com telhas onduladas fibrocimento ou aluminio | C31: COMPOSIÇÃO | D31: 101 | E31: m² | F31: =[2]ORÇAMENTO!$F$21 -> 857 | G31: =[2]ORÇAMENTO!$G$21 -> 5.9906 | H31: 5133.9442 | I31: 0.009538595948 | J31: 0.786993588 | K31: 22 | L31: A
A32: 11.2 | B32: PISO CIMENTADO TRACO 1:3 (CIMENTO E AREIA) ACABAMENTO LISO ESPESSURA 3,0CM, PREPARO MANUAL DA ARGAMASSA | C32: SINAPI | D32: 73922/005 | E32: m² | F32: =[2]ORÇAMENTO!$F$153 -> 122 | G32: =[2]ORÇAMENTO!$G$153 -> 38.48 | H32: 4694.56 | I32: 0.008722243416 | J32: 0.7957158314 | K32: 23 | L32: A
A33: 16.8 | B33: Contrapiso em argamassa traço 1:4 (cimento e areia), preparo manual, aplicado em áreas secas sobre bloco de EPS, aderido, espessura 6cm. af_06/2014 (ELEVAÇÃO DO PISO DO CORREDOR) | C33: COMPOSIÇÃO | D33: 153 | E33: m² | F33: =[2]ORÇAMENTO!$F$201 -> 53.156 | G33: =[2]ORÇAMENTO!$G$201 -> 86.266916 | H33: 4585.604187 | I33: 0.008519809295 | J33: 0.8042356407 | K33: 24 | L33: A
A34: 2.1.1 | B34: EXECUÇÃO DE ESCRITÓRIO EM CANTEIRO DE OBRA EM CHAPA DE MADEIRA COMPENSADA, NÃO INCLUSO MOBILIÁRIO E EQUIPAMENTOS. AF_02/2016 | C34: SINAPI | D34: 93207 | E34: m² | F34: =[2]ORÇAMENTO!$F$14 -> 7.48 | G34: =[2]ORÇAMENTO!$G$14 -> 582.19 | H34: 4354.7812 | I34: 0.008090952432 | J34: 0.8123265931 | K34: 25 | L34: B
A35: 2.2.8 | B35: Remoção de poltronas | C35: COMPOSIÇÃO | D35: 106 | E35: und | F35: =[2]ORÇAMENTO!$F$27 -> 337 | G35: =[2]ORÇAMENTO!$G$27 -> 12.1707 | H35: 4101.5259 | I35: 0.007620417521 | J35: 0.8199470107 | K35: 26 | L35: B
A36: 14.1 | B36: Emassamento de superfície, com aplicação de 02 demãos de massa corrida, lixamento e retoques (teto camarim, varanda e todo forro de gesso do auditório, inclusive sala de som) | C36: COMPOSIÇÃO | D36: 141 | E36: m² | F36: =[2]ORÇAMENTO!$F$181 -> 449.608 | G36: =[2]ORÇAMENTO!$G$181 -> 8.757 | H36: 3937.217256 | I36: 0.007315140777 | J36: 0.8272621514 | K36: 27 | L36: B
A37: 14.3 | B37: APLICAÇÃO MANUAL DE PINTURA COM TINTA LÁTEX PVA EM TETO, DUAS DEMÃOS AF_06/2014 | C37: SINAPI | D37: 88486 | E37: m² | F37: =[2]ORÇAMENTO!$F$183 -> 449.608 | G37: =[2]ORÇAMENTO!$G$183 -> 8.36 | H37: 3758.72288 | I37: 0.006983507696 | J37: 0.8342456591 | K37: 28 | L37: B
A38: 7.3.1 | B38: PORTA DE VIDRO TEMPERADO, DE GIRO, COM 02 FOLHAS DE 1,115X2,10M, ESPESSURA 10MM, INCLUSIVE ACESSORIOS ( P5) | C38: COMPOSIÇÃO | D38: 129 | E38: und | F38: =[2]ORÇAMENTO!$F$66 -> 1 | G38: =[2]ORÇAMENTO!$G$66 -> 3708.63842 | H38: 3708.63842 | I38: 0.006890453427 | J38: 0.8411361126 | K38: 29 | L38: B
A39: 7.1.5 | B39: Revisão de esquadria de madeira (P6 P7) | C39: COMPOSIÇÃO | D39: 124 | E39: m² | F39: =[2]ORÇAMENTO!$F$62 -> 54.57 | G39: =[2]ORÇAMENTO!$G$62 -> 63.693 | H39: 3475.72701 | I39: 0.006457716384 | J39: 0.847593829 | K39: 30 | L39: B
A40: 2.2.7 | B40: Remoção de estrutura metálica chumbada em concreto (alambrado, guarda-corpo) | C40: COMPOSIÇÃO | D40: 105 | E40: m² | F40: =[2]ORÇAMENTO!$F$26 -> 89.38 | G40: =[2]ORÇAMENTO!$G$26 -> 36 | H40: 3217.68 | I40: 0.00597827873 | J40: 0.8535721077 | K40: 31 | L40: B
A41: 12.4 | B41: Porta corta fogo, de abrir, 02 folhas, em chapa de aço galvanizado nº24, batente em chapa nº18, classe 90, isolante em manta cerâmica incombustível e=5cm, dobradiças tipo helicoidal em aço 1010/1020, e fechadura reversível sem chave | C41: COMPOSIÇÃO | D41: 147 | E41: m² | F41: =[2]ORÇAMENTO!$F$159 -> 5.04 | G41: =[2]ORÇAMENTO!$G$159 -> 616.0956 | H41: 3105.121824 | I41: 0.00576915161 | J41: 0.8593412593 | K41: 32 | L41: B
A42: 12.5 | B42: Barra antipânico simples sem chave para uma porta ref. MH2585, similar ou qualidade superior | C42: COMPOSIÇÃO | D42: 148 | E42: und | F42: =[2]ORÇAMENTO!$F$160 -> 4 | G42: =[2]ORÇAMENTO!$G$160 -> 702.369 | H42: 2809.476 | I42: 0.005219857355 | J42: 0.8645611166 | K42: 33 | L42: B
A43: 4.3 | B43: CONTRAPISO EM ARGAMASSA TRAÇO 1:4 (CIMENTO E AREIA), PREPARO MECÂNICO COM BETONEIRA 400 L, APLICADO EM ÁREAS MOLHADAS SOBRE LAJE, ADERIDO, ESPESSURA 3CM. AF_06/2014 (contrapiso da calçada ao longo do trajeto da tubulação do esgoto) | C43: SINAPI | D43: 87745 | E43: m² | F43: =[2]ORÇAMENTO!$F$41 -> 75.18 | G43: =[2]ORÇAMENTO!$G$41 -> 34.36 | H43: 2583.1848 | I43: 0.004799420311 | J43: 0.869360537 | K43: 34 | L43: B
A44: 2.2.10 | B44: Remoção de pintura(raspagem e/ou lixamento e/ou escovação) | C44: COMPOSIÇÃO | D44: 108 | E44: m² | F44: =[2]ORÇAMENTO!$F$29 -> 244.73 | G44: =[2]ORÇAMENTO!$G$29 -> 9.6 | H44: 2349.408 | I44: 0.004365075419 | J44: 0.8737256124 | K44: 35 | L44: B
A45: 9.20 | B45: CABO DE COBRE FLEXÍVEL ISOLADO, 2,5 MM², ANTI-CHAMA 0,6/1,0 KV, PARA CIRCUITOS TERMINAIS - FORNECIMENTO E INSTALAÇÃO. AF_12/2015 (VERMELHO OU PRETO) | C45: SINAPI | D45: 91927 | E45: m | F45: =[2]ORÇAMENTO!$F$93 -> 759.3 | G45: =[2]ORÇAMENTO!$G$93 -> 3.06 | H45: 2323.458 | I45: 0.004316861696 | J45: 0.8780424741 | K45: 36 | L45: B
A46: 9.11 | B46: Luminária de embutir no forro, c/ lâmpada LED 10w, formato tradicional, Forncecimento e Instalação (Laterais Plateia) | C46: COMPOSIÇÃO | D46: 112 | E46: und | F46: =[2]ORÇAMENTO!$F$84 -> 18 | G46: =[2]ORÇAMENTO!$G$84 -> 127.102 | H46: 2287.836 | I46: 0.00425067791 | J46: 0.882293152 | K46: 37 | L46: B
A47: 17.12 | B47: Remoção de entulho da obra - carga e tranporte | C47: COMPOSIÇÃO | D47: 162 | E47: m³ | F47: =[2]ORÇAMENTO!$F$215 -> 26.054825 | G47: =[2]ORÇAMENTO!$G$215 -> 82.65 | H47: 2153.431286 | I47: 0.004000961082 | J47: 0.8862941131 | K47: 38 | L47: B
A48: 9.18 | B48: CABO DE COBRE FLEXÍVEL ISOLADO, 2,5 MM², ANTI-CHAMA 0,6/1,0 KV, PARA CIRCUITOS TERMINAIS - FORNECIMENTO E INSTALAÇÃO. AF_12/2015 (AZUL CLARO) | C48: SINAPI | D48: 91927 | E48: m | F48: =[2]ORÇAMENTO!$F$91 -> 691.6 | G48: =[2]ORÇAMENTO!$G$91 -> 3.06 | H48: 2116.296 | I48: 0.00393196569 | J48: 0.8902260788 | K48: 39 | L48: B
A49: 17.3 | B49: ESPELHO CRISTAL ESPESSURA 4MM, COM MOLDURA EM ALUMINIO E CHAPA DE EPS 10MM (Camarim, parede do lavatório) | C49: COMPOSIÇÃO | D49: 133 | E49: m² | F49: =[2]ORÇAMENTO!$F$206 -> 6 | G49: =[2]ORÇAMENTO!$G$206 -> 352.1975 | H49: 2113.185 | I49: 0.003926185617 | J49: 0.8941522644 | K49: 40 | L49: B
A50: 6.2 | B50: PAREDE COM PLACAS DE GESSO ACARTONADO (DRYWALL), PARA USO INTERNO, COM DUAS FACES DUPLAS E ESTRUTURA METÁLICA COM GUIAS DUPLAS, COM VÃOS. AF_06/2017_P | C50: SINAPI | D50: 96369 | E50: m² | F50: =[2]ORÇAMENTO!$F$53 -> 17.28 | G50: =[2]ORÇAMENTO!$G$53 -> 120.85 | H50: 2088.288 | I50: 0.003879928312 | J50: 0.8980321927 | K50: 41 | L50: B
A51: 2.2.6 | B51: RETIRADA DE FORRO EM REGUAS DE PVC, INCLUSIVE RETIRADA DE PERFIS | C51: SINAPI | D51: 72238 | E51: m² | F51: =[2]ORÇAMENTO!$F$25 -> 365.03 | G51: =[2]ORÇAMENTO!$G$25 -> 5.41 | H51: 1974.8123 | I51: 0.003669096482 | J51: 0.9017012892 | K51: 42 | L51: B
A52: 6.1 | B52: (COMPOSIÇÃO REPRESENTATIVA) DO SERVIÇO DE ALVENARIA DE VEDAÇÃO DE BLOCOS VAZADOS DE CERÂMICA DE 9X19X19CM (ESPESSURA 9CM), PARA EDIFICAÇÃO HABITACIONAL UNIFAMILIAR (CASA) E EDIFICAÇÃO PÚBLICA PADRÃO. AF_11/2014 | C52: SINAPI | D52: 89168 | E52: m² | F52: =[2]ORÇAMENTO!$F$52 -> 37.86 | G52: =[2]ORÇAMENTO!$G$52 -> 51.62 | H52: 1954.3332 | I52: 0.003631047401 | J52: 0.9053323366 | K52: 43 | L52: B
A53: 2.1.5 | B53: Placa de obra em chapa zincada, instalada | C53: SINAPI | D53: 74209/001 | E53: m² | F53: =[2]ORÇAMENTO!$F$18 -> 6 | G53: =[2]ORÇAMENTO!$G$18 -> 316.6 | H53: 1899.6 | I53: 0.003529356019 | J53: 0.9088616926 | K53: 44 | L53: B
A54: 15.1 | B54: Condicionador de ar tipo split high wall, 9000 btu - FORNECIMENTO E INSTALACAO | C54: COMPOSIÇÃO | D54: 158 | E54: und | F54: =[2]ORÇAMENTO!$F$189 -> 1 | G54: =[2]ORÇAMENTO!$G$189 -> 1723.58 | H54: 1723.58 | I54: 0.003202320197 | J54: 0.9120640128 | K54: 45 | L54: B
A55: 16.5 | B55: Imunização de madeira contra cupim, com aplicação de 01 demão de Pentox, similar ou qualidade superior | C55: COMPOSIÇÃO | D55: 139 | E55: m² | F55: =[2]ORÇAMENTO!$F$198 -> 129 | G55: =[2]ORÇAMENTO!$G$198 -> 12.94025 | H55: 1669.29225 | I55: 0.003101456438 | J55: 0.9151654692 | K55: 46 | L55: B
A56: 17.4 | B56: ESPELHO CRISTAL ESPESSURA 4MM, COM MOLDURA EM MDF E CHAPA DE EPS 10MM (Camarim, parede da bancada de maquiagem) | C56: COMPOSIÇÃO | D56: 134 | E56: m² | F56: =[2]ORÇAMENTO!$F$207 -> 4.58 | G56: =[2]ORÇAMENTO!$G$207 -> 355.3565 | H56: 1627.53277 | I56: 0.00302386954 | J56: =I56+J55 -> 0.9181893388 | K56: 47 | L56: B
A57: 17.5 | B57: Armário de madeira MDF revestida em laminado melamínico | C57: COMPOSIÇÃO | D57: 135 | E57: m² | F57: =[2]ORÇAMENTO!$F$208 -> 12.79 | G57: =[2]ORÇAMENTO!$G$208 -> 125.91736 | H57: =F57*G57 -> 1610.483034 | I57: =H57/$H$177 -> 0.002992192036 | J57: =I57+J56 -> 0.9211815308 | K57: 48 | L57: B
A58: 17.2 | B58: Letra em alumínio com pintura eletrostática a pó na cor preto 20 x 20cm - instalado | C58: COMPOSIÇÃO | D58: 132 | E58: und | F58: =[2]ORÇAMENTO!$F$205 -> 24 | G58: =[2]ORÇAMENTO!$G$205 -> 63.83 | H58: 1531.92 | I58: 0.002846226086 | J58: =I58+J57 -> 0.9240277569 | K58: 49 | L58: B
A59: 16.4 | B59: Piso tátil direcional e/ou alerta, em borracha, p/deficientes visuais, dimensões 25x25cm, aplicado, rejuntado, exclusive regularização de base | C59: ORSE | D59: 7323 | E59: m² | F59: =[2]ORÇAMENTO!$F$197 -> 7.13 | G59: =[2]ORÇAMENTO!$G$197 -> 210 | H59: 1497.3 | I59: =H59/$H$177 -> 0.002781903962 | J59: =I59+J58 -> 0.9268096608 | K59: 50 | L59: B
A60: 16.2 | B60: CONTRAPISO EM ARGAMASSA TRAÇO 1:4 (CIMENTO E AREIA), PREPARO MECÂNICO COM BETONEIRA 400 L, APLICADO EM ÁREAS MOLHADAS SOBRE LAJE, ADERIDO, ESPESSURA 2CM. AF_06/2014 (piso da varanda do auditório e camarim) | C60: SINAPI | D60: 87735 | E60: m² | F60: =[2]ORÇAMENTO!$F$195 -> 47.77 | G60: =[2]ORÇAMENTO!$G$195 -> 29.06 | H60: 1388.1962 | I60: 0.00257919489 | J60: 0.9293888557 | K60: 51 | L60: B
A61: 9.45 | B61: LÂMPADA LED 6 W BIVOLT BRANCA, FORMATO TRADICIONAL (BASE E27) - FORNECIMENTO E INSTALAÇÃO (Espelhos camarim) | C61: SINAPI | D61: 93042 | E61: und | F61: =[2]ORÇAMENTO!$F$118 -> 44 | G61: =[2]ORÇAMENTO!$G$118 -> 30.56 | H61: 1344.64 | I61: 0.002498269782 | J61: 0.9318871255 | K61: 52 | L61: B
A62: 10.3.3 | B62: TUBO PVC, SERIE NORMAL, ESGOTO PREDIAL, DN 50 MM, FORNECIDO E INSTALADO EM RAMAL DE DESCARGA OU RAMAL DE ESGOTO SANITÁRIO. AF_12/2014_P | C62: SINAPI | D62: 89712 | E62: m | F62: =[2]ORÇAMENTO!$F$146 -> 66.4 | G62: =[2]ORÇAMENTO!$G$146 -> 19.93 | H62: 1323.352 | I62: 0.002458717807 | J62: 0.9343458433 | K62: 53 | L62: B
A63: 14.2 | B63: Emassamento de superfície, com aplicação de 02 demãos de massa acrílica, lixamento e retoques (parede) | C63: COMPOSIÇÃO | D63: 142 | E63: m² | F63: =[2]ORÇAMENTO!$F$182 -> 111.9318 | G63: =[2]ORÇAMENTO!$G$182 -> 11.067 | H63: 1238.749231 | I63: 0.00230153035 | J63: 0.9366473737 | K63: 54 | L63: B
A64: 17.13 | B64: Placa de inauguração de obra em alumínio 0,60 x 0,80 m | C64: COMPOSIÇÃO | D64: 163 | E64: m³ | F64: =[2]ORÇAMENTO!$F$216 -> 1 | G64: =[2]ORÇAMENTO!$G$216 -> 1229.5856 | H64: 1229.5856 | I64: 0.002284504811 | J64: 0.9389318785 | K64: 55 | L64: B
A65: 12.10 | B65: ELETRODUTO DE AÇO GALVANIZADO, CLASSE LEVE, DN 25 MM (1), APARENTE INSTALADO EM TETO - FORNECIMENTO E INSTALAÇÃO. AF_11/2016_P | C65: SINAPI | D65: 95746 | E65: m² | F65: =[2]ORÇAMENTO!$F$165 -> 84.56 | G65: =[2]ORÇAMENTO!$G$165 -> 12.91 | H65: 1091.6696 | I65: 0.0020282642 | J65: 0.9409601427 | K65: 56 | L65: B
A66: 14.6 | B66: APLICAÇÃO DE FUNDO SELADOR LÁTEX PVA EM TETO, UMA DEMÃO. AF_06/2014 (Forro de gesso acartonado) | C66: SINAPI | D66: 88482 | E66: m² | F66: =[2]ORÇAMENTO!$F$186 -> 411.57 | G66: =[2]ORÇAMENTO!$G$186 -> 2.54 | H66: 1045.3878 | I66: 0.001942275071 | J66: 0.9429024178 | K66: 57 | L66: B
A67: 13.1.4 | B67: MASSA ÚNICA, PARA RECEBIMENTO DE PINTURA, EM ARGAMASSA TRAÇO 1:2:8, PREPARO MECÂNICO COM BETONEIRA 400L, APLICADA MANUALMENTE EM FACES INTERNAS DE PAREDES, ESPESSURA DE 20MM, COM EXECUÇÃO DE TALISCAS. AF_06/2014 | C67: SINAPI | D67: 87529 | E67: m² | F67: =[2]ORÇAMENTO!$F$176 -> 41.14 | G67: =[2]ORÇAMENTO!$G$176 -> 24.94 | H67: 1026.0316 | I67: 0.001906312278 | J67: 0.94480873 | K67: 58 | L67: B
A68: 9.41 | B68: Dispositivo de proteção contra surto de tensão DPS 60kA - 275v | C68: COMPOSIÇÃO | D68: 118 | E68: und | F68: =[2]ORÇAMENTO!$F$114 -> 4 | G68: =[2]ORÇAMENTO!$G$114 -> 253.488 | H68: 1013.952 | I68: 0.001883869022 | J68: 0.9466925991 | K68: 59 | L68: B
A69: 7.2.1 | B69: Revisão de esquadria de ferro | C69: COMPOSIÇÃO | D69: 125 | E69: m² | F69: =[2]ORÇAMENTO!$F$64 -> 13.02 | G69: =[2]ORÇAMENTO!$G$64 -> 74.4142 | H69: 968.872884 | I69: 0.001800114416 | J69: 0.9484927135 | K69: 60 | L69: B
A70: 9.44 | B70: QUADRO DE DISTRIBUICAO DE ENERGIA DE EMBUTIR, EM CHAPA METALICA, PARA 50 DISJUNTORES TERMOMAGNETICOS MONOPOLARES, COM BARRAMENTO TRIFASICO E NEUTRO, FORNECIMENTO E INSTALACAO | C70: SINAPI | D70: 74131/008 | E70: und | F70: =[2]ORÇAMENTO!$F$117 -> 1 | G70: =[2]ORÇAMENTO!$G$117 -> 956.59 | H70: 956.59 | I70: 0.001777293469 | J70: 0.9502700069 | K70: 61 | L70: B
A71: 17.11 | B71: LIMPEZA FINAL DA OBRA | C71: SINAPI | D71: 9357 | E71: m² | F71: =[2]ORÇAMENTO!$F$214 -> 514.5 | G71: =[2]ORÇAMENTO!$G$214 -> 1.83 | H71: 941.535 | I71: 0.001749322078 | J71: 0.952019329 | K71: 62 | L71: C
A72: 9.21 | B72: CABO DE COBRE FLEXÍVEL ISOLADO, 2,5 MM², ANTI-CHAMA 0,6/1,0 KV, PARA CIRCUITOS TERMINAIS - FORNECIMENTO E INSTALAÇÃO. AF_12/2015 (VERDE OU VERDE-AMARELO) | C72: SINAPI | D72: 91927 | E72: m | F72: =[2]ORÇAMENTO!$F$94 -> 306.2 | G72: =[2]ORÇAMENTO!$G$94 -> 3.06 | H72: 936.972 | I72: 0.001740844266 | J72: 0.9537601733 | K72: 63 | L72: C
A73: 7.1.2 | B73: Porta de giro em madeira compensada 01 folha lisa (0,92m x 2,10m) em quadro estrutural de madeira, preenchido com lâminas em chapa de compensado 4mm de espessura, revestida com laminado melamínico na cor branco, com bandeira fixa com vidro e madeira, inclui alizarees . (tonalidade a ser definida pelo setor de Arquitetura da SINFRA) ( P3). | C73: COMPOSIÇÃO | D73: 127 | E73: und | F73: =[2]ORÇAMENTO!$F$59 -> 1 | G73: =[2]ORÇAMENTO!$G$59 -> 872.3930461 | H73: 872.3930461 | I73: 0.001620859996 | J73: 0.9553810333 | K73: 64 | L73: C
A74: 7.1.3 | B74: Porta de giro em madeira compensada 01 folha lisa (0,90m x 2,10m) em quadro estrutural de madeira, preenchido com lâminas em chapa de compensado 4mm de espessura, revestida com laminado melamínico madeirado (8mm), tonalidade idêntica ao painel da parede adjacente, com bandeira fixa com vidro e madeira, inclui alizarees . (tonalidade a ser definida pelo setor de Arquitetura da SINFRA) ( P4). | C74: COMPOSIÇÃO | D74: 128 | E74: und | F74: =[2]ORÇAMENTO!$F$60 -> 1 | G74: =[2]ORÇAMENTO!$G$60 -> 866.762297 | H74: 866.762297 | I74: 0.001610398363 | J74: 0.9569914316 | K74: 65 | L74: C
A75: 7.1.4 | B75: Porta de giro em madeira compensada 01 folha lisa (0,90m x 2,10m) em quadro estrutural de madeira, preenchido com lâminas em chapa de compensado 4mm de espessura, revestida com laminado melamínico na cor branco (8mm), com bandeira fixa com vidro e madeira, inclui alizarees . ( P8). | C75: COMPOSIÇÃO | D75: 130 | E75: und | F75: =[2]ORÇAMENTO!$F$61 -> 1 | G75: =[2]ORÇAMENTO!$G$61 -> 866.762297 | H75: 866.762297 | I75: 0.001610398363 | J75: 0.95860183 | K75: 66 | L75: C
A76: 12.6 | B76: Detector de fumaça óptico endereçável, modelo VRE-F, marca VERIN, similar ou de qualidade superior | C76: COMPOSIÇÃO | D76: 149 | E76: und | F76: =[2]ORÇAMENTO!$F$161 -> 10 | G76: =[2]ORÇAMENTO!$G$161 -> 85.48 | H76: =F76*G76 -> 854.8 | I76: 0.00158817305 | J76: =I76+J75 -> 0.9601900031 | K76: 67 | L76: C
A77: 14.4 | B77: APLICAÇÃO MANUAL DE PINTURA COM TINTA LÁTEX ACRÍLICA EM PAREDES, DUAS DEMÃOS (Camarim e alvenarias executadas). | C77: SINAPI | D77: 88489 | E77: m² | F77: =[2]ORÇAMENTO!$F$184 -> 89.0068 | G77: =[2]ORÇAMENTO!$G$184 -> 9.49 | H77: 844.674532 | I77: 0.001569360467 | J77: 0.9617593635 | K77: 68 | L77: C
A78: 9.43 | B78: QUADRO DE DISTRIBUICAO DE ENERGIA DE EMBUTIR, EM CHAPA METALICA, PARA 24 DISJUNTORES TERMOMAGNETICOS MONOPOLARES, COM BARRAMENTO TRIFASICO E NEUTRO, FORNECIMENTO E INSTALACAO | C78: SINAPI | D78: 74131/005 | E78: und | F78: =[2]ORÇAMENTO!$F$116 -> 2 | G78: =[2]ORÇAMENTO!$G$116 -> 399.96 | H78: 799.92 | I78: 0.001486208921 | J78: 0.9632455724 | K78: 69 | L78: C
A79: 12.7 | B79: Central de alarme e detecção de incendio, capacidade: 8 laços, com 2 linhas, mod.VR-8L, Verin, similar ou de qualidade superior | C79: COMPOSIÇÃO | D79: 150 | E79: und | F79: =[2]ORÇAMENTO!$F$162 -> 1 | G79: =[2]ORÇAMENTO!$G$162 -> 760.93 | H79: 760.93 | I79: 0.00141376757 | J79: 0.96465934 | K79: 70 | L79: C
A80: 7.1.1 | B80: Porta de giro em madeira compensada 01 folha lisa (0,80m x 2,10m) em quadro estrutural de madeira, preenchido com lâminas em chapa de compensado 4mm de espessura, revestida com laminado melamínico madeirado (8mm), tonalidade idêntica ao painel da parede adjacente, inclui alizares. (tonalidade a ser definida pelo setor de Arquitetura da SINFRA) ( P2). | C80: COMPOSIÇÃO | D80: 126 | E80: und | F80: =[2]ORÇAMENTO!$F$58 -> 1 | G80: =[2]ORÇAMENTO!$G$58 -> 734.63886 | H80: 734.63886 | I80: 0.001364920026 | J80: 0.96602426 | K80: 71 | L80: C
A81: 17.7 | B81: Fornecimento e montagem de Cortinas em tecido oxford com trilho em alumínio (Cortina para as portas P6 P7, conforme especificado em projeto arquitetônico) | C81: Cotação Painel de Preços | D81: 1 | E81: m² | F81: =[2]ORÇAMENTO!$F$210 -> 54.57 | G81: =[2]ORÇAMENTO!$G$210 -> 12.9 | H81: 703.953 | I81: 0.001307907327 | J81: 0.9673321674 | K81: 72 | L81: C
A82: 9.19 | B82: CABO DE COBRE FLEXÍVEL ISOLADO, 2,5 MM², ANTI-CHAMA 0,6/1,0 KV, PARA CIRCUITOS TERMINAIS - FORNECIMENTO E INSTALAÇÃO. AF_12/2015 (BRANCO) | C82: SINAPI | D82: 91927 | E82: m | F82: =[2]ORÇAMENTO!$F$92 -> 207.9 | G82: =[2]ORÇAMENTO!$G$92 -> 3.06 | H82: 636.174 | I82: 0.001181977541 | J82: 0.9685141449 | K82: 73 | L82: C
A83: 4.2 | B83: ALVENARIA EM TIJOLO CERAMICO MACICO 5X10X20CM 1/2 VEZ (ESPESSURA 10CM), ASSENTADO COM ARGAMASSA TRACO 1:2:8 (CIMENTO, CAL E AREIA) (Recomposição da calçada escavada) | C83: SINAPI | D83: 72132 | E83: m² | F83: =[2]ORÇAMENTO!$F$40 -> 12.84 | G83: =[2]ORÇAMENTO!$G$40 -> 47.61 | H83: 611.3124 | I83: 0.001135786007 | J83: 0.9696499309 | K83: 74 | L83: C
A84: 10.3.5 | B84: CAIXA DE INSPEÇÃO EM ALVENARIA DE TIJOLO MACIÇO 60X60X60CM, REVESTIDA INTERNAMENTO COM BARRA LISA (CIMENTO E AREIA, TRAÇO 1:4) E=2,0CM, COMTAMPA PRÉ-MOLDADA DE CONCRETO E FUNDO DE CONCRETO 15MPA TIPO C - ESCAVAÇÃO E CONFECÇÃO | C84: SINAPI | D84: 74104/001 | E84: und | F84: =[2]ORÇAMENTO!$F$148 -> 5 | G84: =[2]ORÇAMENTO!$G$148 -> 118.67 | H84: 593.35 | I84: 0.001102412821 | J84: 0.9707523437 | K84: 75 | L84: C
A85: 7.3.2 | B85: Janela em alumínio, cor N/P/B, tipo moldura-vidro, de correr, 1F+1M, com vidro 4 mm (J6 da sala de som) | C85: COMPOSIÇÃO | D85: 129 | E85: und | F85: =[2]ORÇAMENTO!$F$67 -> 1.6 | G85: =[2]ORÇAMENTO!$G$67 -> 369.43 | H85: 591.088 | I85: 0.001098210145 | J85: 0.9718505539 | K85: 76 | L85: C
A86: 10.1.1 | B86: TUBO, PVC, SOLDÁVEL, DN 32MM, INSTALADO EM RAMAL DE DISTRIBUIÇÃO DE ÁGUA - FORNECIMENTO E INSTALAÇÃO. AF_12/2014_P | C86: SINAPI | D86: 89403 | E86: m | F86: =[2]ORÇAMENTO!$F$124 -> 54.6 | G86: =[2]ORÇAMENTO!$G$124 -> 10.74 | H86: 586.404 | I86: 0.001089507521 | J86: 0.9729400614 | K86: 77 | L86: C
A87: 17.1 | B87: Bancada de madeira MDF revestida em laminado melamínico (Sala de Som e Camarim) | C87: COMPOSIÇÃO | D87: 131 | E87: m² | F87: =[2]ORÇAMENTO!$F$204 -> 4.53 | G87: =[2]ORÇAMENTO!$G$204 -> 125.91736 | H87: 570.4056408 | I87: 0.001059783418 | J87: 0.9739998448 | K87: 78 | L87: C
A88: 3.1 | B88: Escavação manual de vala ou cava em material de 1ª categoria, profundidade até 1,50m (Escavação para alocação da tubulação de esgoto na calçada) | C88: COMPOSIÇÃO | D88: 110 | E88: m³ | F88: =[2]ORÇAMENTO!$F$35 -> 15.41 | G88: =[2]ORÇAMENTO!$G$35 -> 36 | H88: 554.76 | I88: 0.001030714648 | J88: 0.9750305595 | K88: 79 | L88: C
A89: 3.2 | B89: REATERRO DE VALA COM COMPACTAÇÃO MANUAL | C89: SINAPI | D89: 73964/006 | E89: m³ | F89: =[2]ORÇAMENTO!$F$36 -> 15.11 | G89: =[2]ORÇAMENTO!$G$36 -> 36 | H89: 543.96 | I89: 0.001010648821 | J89: 0.9760412083 | K89: 80 | L89: C
A90: 12.1 | B90: EXTINTOR DE PQS 12KG, CLASSE BC - FORNECIMENTO E INSTALACAO | C90: COMPOSIÇÃO | D90: 144 | E90: und | F90: =[2]ORÇAMENTO!$F$156 -> 2 | G90: =[2]ORÇAMENTO!$G$156 -> 247.01 | H90: 494.02 | I90: 0.0009178629503 | J90: 0.9769590712 | K90: 81 | L90: C
A91: 6.3 | B91: Parede de bloco de gesso (50 x 65cm) - fornecimento e execução (Fechamento das janelas da região do palco) | C91: ORSE | D91: 10565 | E91: m² | F91: =[2]ORÇAMENTO!$F$54 -> 9.0045 | G91: =[2]ORÇAMENTO!$G$54 -> 51.67 | H91: 465.262515 | I91: 0.0008644330689 | J91: 0.9778235043 | K91: 82 | L91: C
A92: 12.11 | B92: Extintor de incêndio de Pó ABC 12Kg capacidade extintora 6A-40BC | C92: COTAÇÃO | D92: 2 | E92: und | F92: =[2]ORÇAMENTO!$F$166 -> 2 | G92: =[2]ORÇAMENTO!$G$166 -> 231.9666667 | H92: 463.9333333 | I92: 0.0008619635199 | J92: 0.9786854678 | K92: 83 | L92: C
A93: 12.9 | B93: Avisador sonoro tipo sirene para incêndio - Fornecimento | C93: ORSE | D93: 10446 | E93: und | F93: =[2]ORÇAMENTO!$F$164 -> 2 | G93: =[2]ORÇAMENTO!$G$164 -> 230.46 | H93: 460.92 | I93: 0.0008563649064 | J93: 0.9795418327 | K93: 84 | L93: C
A94: 16.7 | B94: RODAPE EM GRANILITE/MARMORITE, ALTURA 10CM | C94: SINAPI | D94: 73850/001 | E94: m | F94: =[2]ORÇAMENTO!$F$200 -> 21.4 | G94: =[2]ORÇAMENTO!$G$200 -> 18.76 | H94: 401.464 | I94: 0.0007458988128 | J94: 0.9802877315 | K94: 85 | L94: C
A95: 9.46 | B95: Soquete ou bocal de porcelana E27 de tempo, ref.MT-2233, marca Decorlux, similar ou de qualidade superior (Espelhos camarim) | C95: COMPOSIÇÃO | D95: 156 | E95: und | F95: =[2]ORÇAMENTO!$F$119 -> 44 | G95: =[2]ORÇAMENTO!$G$119 -> 8.454 | H95: 371.976 | I95: 0.0006911116732 | J95: 0.9809788432 | K95: 86 | L95: C
A96: 4.1 | B96: Caixa de alvenaria de tijolo maciço (0,10m) dimensões interna 30x30x30cm revestida internamente com argamassa 1:3 e tampa de concreto | C96: COMPOSIÇÃO | D96: 111 | E96: und | F96: =[2]ORÇAMENTO!$F$39 -> 5 | G96: =[2]ORÇAMENTO!$G$39 -> 72.4681202 | H96: 362.340601 | I96: 0.0006732096131 | J96: 0.9816520528 | K96: 87 | L96: C
A97: 1.1 | B97: Projeto de "as built" | C97: ORSE (insumos) | D97: 7325 | E97: m² | F97: =[2]ORÇAMENTO!$F$10 -> 514.5 | G97: =[2]ORÇAMENTO!$G$10 -> 0.7 | H97: 360.15 | I97: 0.0006691395927 | J97: 0.9823211924 | K97: 88 | L97: C
A98: 9.40 | B98: Disjuntor termomagnetico tripolar 100 A, padrão DIN (Europeu - linha branca), 10KA | C98: COMPOSIÇÃO | D98: 117 | E98: und | F98: =[2]ORÇAMENTO!$F$113 -> 1 | G98: =[2]ORÇAMENTO!$G$113 -> 345.96 | H98: 345.96 | I98: 0.0006427753255 | J98: 0.9829639678 | K98: 89 | L98: C
A99: 9.42 | B99: QUADRO DE DISTRIBUICAO DE ENERGIA DE EMBUTIR, EM CHAPA METALICA, PARA 18 DISJUNTORES TERMOMAGNETICOS MONOPOLARES, COM BARRAMENTO TRIFASICO E NEUTRO, FORNECIMENTO E INSTALACAO | C99: SINAPI | D99: 74131/004 | E99: und | F99: =[2]ORÇAMENTO!$F$115 -> 1 | G99: =[2]ORÇAMENTO!$G$115 -> 344.47 | H99: 344.47 | I99: 0.0006400069845 | J99: 0.9836039747 | K99: 90 | L99: C
A100: 17.6 | B100: Tubo de aço inox 1 1/2" esp.1,50mm | C100: COMPOSIÇÃO | D100: 142 | E100: m | F100: =[2]ORÇAMENTO!$F$209 -> 6.03 | G100: =[2]ORÇAMENTO!$G$209 -> 56.0775 | H100: =F100*G100 -> 338.147325 | I100: =H100/$H$177 -> 0.0006282597898 | J100: 0.9842322345 | K100: 91 | L100: C
A101: 12.2 | B101: EXTINTOR INCENDIO AGUA-PRESSURIZADA 10L INCL SUPORTE PAREDE, SINALIZAÇÃO, FORNECIMENTO E COLOCACÃO | C101: COMPOSIÇÃO | D101: 145 | E101: und | F101: =[2]ORÇAMENTO!$F$157 -> 2 | G101: =[2]ORÇAMENTO!$G$157 -> 165.48 | H101: 330.96 | I101: 0.0006149061213 | J101: 0.9848471406 | K101: 92 | L101: C
A102: 9.37 | B102: DISJUNTOR TERMOMAGNÉTICO TRIPOLAR TIPO DIN, CORRENTE NOMINAL DE 16A - FORNECIMENTO E INSTALAÇÃO. AF_04/2016 | C102: SINAPI | D102: 93668 | E102: und | F102: =[2]ORÇAMENTO!$F$110 -> 5 | G102: =[2]ORÇAMENTO!$G$110 -> 65.77 | H102: 328.85 | I102: =H102/$H$177 -> 0.0006109858532 | J102: 0.9854581265 | K102: 93 | L102: C
A103: 2.2.4 | B103: Remoção de piso em assoalho de madeira | C103: COMPOSIÇÃO | D103: 103 | E103: m² | F103: =[2]ORÇAMENTO!$F$23 -> 105 | G103: =[2]ORÇAMENTO!$G$23 -> 3 | H103: 315 | I103: 0.000585253288 | J103: 0.9860433798 | K103: 94 | L103: C
A104: 14.5 | B104: Aplicação manual de pintura com tinta texturizada acrílica em paredes externas (Fachada) | C104: SINAPI | D104: 88423 | E104: m² | F104: =[2]ORÇAMENTO!$F$185 -> 22.925 | G104: =[2]ORÇAMENTO!$G$185 -> 13.72 | H104: 314.531 | I104: 0.0005843819109 | J104: 0.9866277617 | K104: 95 | L104: C
A105: 9.31 | B105: ELETRODUTO FLEXÍVEL CORRUGADO, PVC, DN 25 MM (3/4"), PARA CIRCUITOS TERMINAIS, INSTALADO EM PAREDE - FORNECIMENTO E INSTALAÇÃO. AF_12/2015 | C105: SINAPI | D105: 91854 | E105: m | F105: =[2]ORÇAMENTO!$F$104 -> 50 | G105: =[2]ORÇAMENTO!$G$104 -> 5.97 | H105: 298.5 | I105: 0.0005545971634 | J105: 0.9871823589 | K105: 96 | L105: C
A106: 9.4 | B106: TOMADA BAIXA DE EMBUTIR (1 MÓDULO), 2P+T 10 A, INCLUINDO SUPORTE E PLACA - FORNECIMENTO E INSTALAÇÃO. AF_12/2015 | C106: SINAPI | D106: 92000 | E106: und | F106: =[2]ORÇAMENTO!$F$77 -> 14 | G106: =[2]ORÇAMENTO!$G$77 -> 20.18 | H106: 282.52 | I106: 0.0005249071712 | J106: 0.987707266 | K106: 97 | L106: C
A107: 2.2.3 | B107: Remoção de painéis verticais de madeira | C107: COMPOSIÇÃO | D107: 102 | E107: m² | F107: =[2]ORÇAMENTO!$F$22 -> 92.9 | G107: =[2]ORÇAMENTO!$G$22 -> 3 | H107: 278.7 | I107: 0.0005178098139 | J107: 0.9882250758 | K107: 98 | L107: C
A108: 10.2.1 | B108: Cuba de embutir oval em louça branca, 35 x 50cm ou equivalente, incluso válvula em metal cromado e sifão flexível em pvc - fornecimento e instalação. af_12/2013 | C108: SINAPI | D108: 86937 | E108: und | F108: =[2]ORÇAMENTO!$F$136 -> 2 | G108: =[2]ORÇAMENTO!$G$136 -> 132.9 | H108: 265.8 | I108: 0.0004938422983 | J108: 0.9887189181 | K108: 99 | L108: C
A109: 9.33 | B109: ELETRODUTO RÍGIDO ROSCÁVEL, PVC, DN 40 MM (1 1/4"), PARA CIRCUITOS TERMINAIS, INSTALADO EM PAREDE - FORNECIMENTO E INSTALAÇÃO. AF_12/2015 | C109: SINAPI | D109: 91873 | E109: m | F109: =[2]ORÇAMENTO!$F$106 -> 20 | G109: =[2]ORÇAMENTO!$G$106 -> 12.03 | H109: 240.6 | I109: 0.0004470220352 | J109: 0.9891659402 | K109: 100 | L109: C
A110: 12.3 | B110: Luminária de emergência 2 x 8w, G-LIGHT, similar ou qualidade superior | C110: COMPOSIÇÃO | D110: 146 | E110: und | F110: =[2]ORÇAMENTO!$F$158 -> 7 | G110: =[2]ORÇAMENTO!$G$158 -> 33.18 | H110: 232.26 | I110: 0.0004315267577 | J110: 0.9895974669 | K110: 101 | L110: C
A111: 17.8 | B111: Tecido em algodão natural (largura de aproximadamente 1,0m) (para execução do provador) | C111: ORSE | D111: 3103 | E111: m | F111: =[2]ORÇAMENTO!$F$211 -> 6.3 | G111: =[2]ORÇAMENTO!$G$211 -> 35 | H111: 220.5 | I111: 0.0004096773016 | J111: 0.9900071442 | K111: 102 | L111: C
A112: 9.14 | B112: Luminária tipo Arandela LED 6W com foco bidirecional para cima e para baixo com caixa em alumínio e pintura epóxidica na cor pereta - Fornecimento (luz amarela) | C112: COMPOSIÇÃO | D112: 115 | E112: und | F112: =[2]ORÇAMENTO!$F$87 -> 2 | G112: =[2]ORÇAMENTO!$G$87 -> 109.6233333 | H112: 219.2466667 | I112: 0.0004073486748 | J112: 0.9904144929 | K112: 103 | L112: C
A113: 12.8 | B113: Acionador manual (botoeira) tipo quebra-vidro, p/instal. Incendio | C113: COMPOSIÇÃO | D113: 151 | E113: und | F113: =[2]ORÇAMENTO!$F$163 -> 2 | G113: =[2]ORÇAMENTO!$G$163 -> 108.84 | H113: 217.68 | I113: 0.0004044378912 | J113: 0.9908189308 | K113: 104 | L113: C
A114: 2.3.1 | B114: Remoção de esquadria de madeira, com ou sem batente | C114: COMPOSIÇÃO | D114: 120 | E114: m² | F114: =[2]ORÇAMENTO!$F$32 -> 20.07 | G114: =[2]ORÇAMENTO!$G$32 -> 10.8184 | H114: 217.125288 | I114: 0.0004034072658 | J114: 0.9912223381 | K114: 105 | L114: C
A115: 13.1.3 | B115: CHAPISCO APLICADO EM ALVENARIA (COM PRESENÇA DE VÃOS) E ESTRUTURAS DE CONCRETO DE FACHADA, COM COLHER DE PEDREIRO. ARGAMASSA TRAÇO 1:3 COM PREPARO EM BETONEIRA 400L. AF_06/2014 | C115: SINAPI | D115: 87905 | E115: m² | F115: =[2]ORÇAMENTO!$F$175 -> 41.14 | G115: =[2]ORÇAMENTO!$G$175 -> 5.13 | H115: 211.0482 | I115: 0.0003921163587 | J115: 0.9916144544 | K115: 106 | L115: C
A116: 2.2.5 | B116: Demolição de piso cerâmico | C116: COMPOSIÇÃO | D116: 104 | E116: m² | F116: =[2]ORÇAMENTO!$F$24 -> 21.81 | G116: =[2]ORÇAMENTO!$G$24 -> 9.4724 | H116: 206.593044 | I116: 0.0003838389152 | J116: 0.9919982933 | K116: 107 | L116: C
A117: 9.3 | B117: CAIXA RETANGULAR 4" X 2" ALTA (2,00 M DO PISO), PVC, INSTALADA EM PAREDE - FORNECIMENTO E INSTALAÇÃO. AF_12/2015 | C117: SINAPI | D117: 91939 | E117: und | F117: =[2]ORÇAMENTO!$F$76 -> 10 | G117: =[2]ORÇAMENTO!$G$76 -> 19.41 | H117: 194.1 | I117: 0.0003606275023 | J117: 0.9923589208 | K117: 108 | L117: C
A118: 10.2.6 | B118: Bancada em granito branco fortaleza, e = 2cm | C118: COMPOSIÇÃO | D118: 121 | E118: m² | F118: =[2]ORÇAMENTO!$F$141 -> 0.65 | G118: =[2]ORÇAMENTO!$G$141 -> 299.318 | H118: 194.5567 | I118: 0.0003614760266 | J118: 0.9927203969 | K118: 109 | L118: C
A119: 10.3.2 | B119: TUBO PVC, SERIE NORMAL, ESGOTO PREDIAL, DN 40 MM, FORNECIDO E INSTALADO EM RAMAL DE DESCARGA OU RAMAL DE ESGOTO SANITÁRIO. AF_12/2014_P | C119: SINAPI | D119: 89711 | E119: m | F119: =[2]ORÇAMENTO!$F$145 -> 12.81 | G119: =[2]ORÇAMENTO!$G$145 -> 13.65 | H119: 174.8565 | I119: 0.0003248741002 | J119: 0.993045271 | K119: 110 | L119: C
A120: 10.2.7 | B120: Testeira em granito branco fortaleza, l=10cm (colado), esp.=2cm - fornecimento e colocação | C120: ORSE | D120: 11825 | E120: m | F120: =[2]ORÇAMENTO!$F$142 -> 1.3 | G120: =[2]ORÇAMENTO!$G$142 -> 134.37 | H120: 174.681 | I120: 0.0003245480305 | J120: 0.993369819 | K120: 111 | L120: C
A121: 9.22 | B121: CABO DE COBRE FLEXÍVEL ISOLADO, 4 MM², ANTI-CHAMA 0,6/1,0 KV, PARA CIRCUITOS TERMINAIS - FORNECIMENTO E INSTALAÇÃO. AF_12/2015 (AZUL CLARO) | C121: SINAPI | D121: 91929 | E121: m | F121: =[2]ORÇAMENTO!$F$95 -> 40.5 | G121: =[2]ORÇAMENTO!$G$95 -> 4.3 | H121: 174.15 | I121: 0.0003235614607 | J121: 0.9936933805 | K121: 112 | L121: C
A122: 9.23 | B122: CABO DE COBRE FLEXÍVEL ISOLADO, 4 MM², ANTI-CHAMA 0,6/1,0 KV, PARA CIRCUITOS TERMINAIS - FORNECIMENTO E INSTALAÇÃO. AF_12/2015 (VERMELHO OU PRETO) | C122: SINAPI | D122: 91929 | E122: m | F122: =[2]ORÇAMENTO!$F$96 -> 40.5 | G122: =[2]ORÇAMENTO!$G$96 -> 4.3 | H122: 174.15 | I122: 0.0003235614607 | J122: 0.9940169419 | K122: 113 | L122: C
A123: 9.24 | B123: CABO DE COBRE FLEXÍVEL ISOLADO, 4 MM², ANTI-CHAMA 0,6/1,0 KV, PARA CIRCUITOS TERMINAIS - FORNECIMENTO E INSTALAÇÃO. AF_12/2015 (VERDE OU VERDE-AMARELO) | C123: SINAPI | D123: 91929 | E123: m | F123: =[2]ORÇAMENTO!$F$97 -> 40.5 | G123: =[2]ORÇAMENTO!$G$97 -> 4.3 | H123: 174.15 | I123: 0.0003235614607 | J123: 0.9943405034 | K123: 114 | L123: C
A124: 9.34 | B124: DISJUNTOR MONOPOLAR TIPO DIN, CORRENTE NOMINAL DE 10A - FORNECIMENTO E INSTALAÇÃO. AF_04/2016 | C124: SINAPI | D124: 93653 | E124: und | F124: =[2]ORÇAMENTO!$F$107 -> 17 | G124: =[2]ORÇAMENTO!$G$107 -> 10.09 | H124: 171.53 | I124: 0.0003186936397 | J124: 0.994659197 | K124: 115 | L124: C
A125: 5.1 | B125: Laje pré-fabricada treliçada para piso ou cobertura, intereixo 38cm, h=12cm, el. enchimento em EPS h=8cm, inclusive escoramento em madeira e capeamento 4cm (Laje da entrada principal do auditório) | C125: COMPOSIÇÃO | D125: 122 | E125: m² | F125: =[2]ORÇAMENTO!$F$44 -> 1.62 | G125: =[2]ORÇAMENTO!$G$44 -> 97.01922 | H125: 157.1711364 | I125: 0.0002920156329 | J125: 0.9949512127 | K125: 116 | L125: C
A126: 9.47 | B126: LAMPADA LED TUBULAR 9/10 W BASE G13 - FORNECIMENTO E INSTALACAO (Espelhos camarim) | C126: COMPOSIÇÃO | D126: 157 | E126: und | F126: =[2]ORÇAMENTO!$F$120 -> 3 | G126: =[2]ORÇAMENTO!$G$120 -> 50.5914 | H126: 151.7742 | I126: 0.0002819884114 | J126: 0.9952332011 | K126: 117 | L126: C
A127: 9.15 | B127: CABO DE COBRE FLEXÍVEL ISOLADO, 1,5 MM², ANTI-CHAMA 0,6/1,0 KV, PARA CIRCUITOS TERMINAIS - FORNECIMENTO E INSTALAÇÃO. AF_12/2015 (AZUL CLARO) | C127: SINAPI | D127: 91925 | E127: m | F127: =[2]ORÇAMENTO!$F$88 -> 65.8 | G127: =[2]ORÇAMENTO!$G$88 -> 2.29 | H127: 150.682 | I127: 0.0002799591617 | J127: 0.9955131602 | K127: 118 | L127: C
A128: 9.32 | B128: ELETRODUTO FLEXÍVEL CORRUGADO, PVC, DN 32 MM (1"), PARA CIRCUITOS TERMINAIS, INSTALADO EM PAREDE - FORNECIMENTO E INSTALAÇÃO. AF_12/2015 | C128: SINAPI | D128: 91856 | E128: m | F128: =[2]ORÇAMENTO!$F$105 -> 20 | G128: =[2]ORÇAMENTO!$G$105 -> 7.48 | H128: 149.6 | I128: 0.0002779488631 | J128: 0.9957911091 | K128: 119 | L128: C
A129: 2.2.1 | B129: DEMOLICAO DE ALVENARIA DE TIJOLOS FURADOS S/REAPROVEITAMENTO | C129: SINAPI | D129: 73899/002 | E129: m³ | F129: =[2]ORÇAMENTO!$F$20 -> 2.18 | G129: =[2]ORÇAMENTO!$G$20 -> 67.66 | H129: 147.4988 | I129: 0.000274044945 | J129: 0.996065154 | K129: 120 | L129: C
A130: 10.2.3 | B130: TORNEIRA CROMADA DE MESA, 1/2" OU 3/4", PARA LAVATÓRIO, PADRÃO MÉDIO - FORNECIMENTO E INSTALAÇÃO. | C130: SINAPI | D130: 86915 | E130: und | F130: =[2]ORÇAMENTO!$F$138 -> 2 | G130: =[2]ORÇAMENTO!$G$138 -> 72.61 | H130: 145.22 | I130: 0.0002698110555 | J130: 0.9963349651 | K130: 121 | L130: C
A131: 9.8 | B131: TOMADA ALTA DE EMBUTIR (1 MÓDULO), 2P+T 10 A, INCLUINDO SUPORTE E PLACA - FORNECIMENTO E INSTALAÇÃO. AF_12/2015 | C131: SINAPI | D131: 91992 | E131: und | F131: =[2]ORÇAMENTO!$F$81 -> 5 | G131: =[2]ORÇAMENTO!$G$81 -> 28.9 | H131: 144.5 | I131: 0.0002684733337 | J131: 0.9966034384 | K131: 122 | L131: C
A132: 9.5 | B132: TOMADA BAIXA DE EMBUTIR (2 MÓDULOS), 2P+T 10 A, INCLUINDO SUPORTE E PLACA - FORNECIMENTO E INSTALAÇÃO. AF_12/2015 | C132: SINAPI | D132: 92008 | E132: und | F132: =[2]ORÇAMENTO!$F$78 -> 4 | G132: =[2]ORÇAMENTO!$G$78 -> 32.41 | H132: 129.64 | I132: 0.0002408642421 | J132: 0.9968443027 | K132: 123 | L132: C
A133: 12.12 | B133: Placa direção saída de emergência Fotoluminescente Sinalize Seta Reta P/ Direita 30x15cm | C133: COTAÇÃO | D133: 3 | E133: und | F133: =[2]ORÇAMENTO!$F$167 -> 8 | G133: =[2]ORÇAMENTO!$G$167 -> 15.71 | H133: 125.68 | I133: =H133/$H$177 -> 0.0002335067722 | J133: =I133+J132 -> 0.9970778094 | K133: 124 | L133: C
A134: 9.1 | B134: CAIXA RETANGULAR 4" X 2" BAIXA (0,30 M DO PISO), PVC, INSTALADA EM PAREDE - FORNECIMENTO E INSTALAÇÃO. AF_12/2015 | C134: SINAPI | D134: 91941 | E134: und | F134: =[2]ORÇAMENTO!$F$74 -> 18 | G134: =[2]ORÇAMENTO!$G$74 -> 6.92 | H134: 124.56 | I134: 0.0002314258716 | J134: =I134+J133 -> 0.9973092353 | K134: 125 | L134: C
A135: 9.16 | B135: CABO DE COBRE FLEXÍVEL ISOLADO, 1,5 MM², ANTI-CHAMA 0,6/1,0 KV, PARA CIRCUITOS TERMINAIS - FORNECIMENTO E INSTALAÇÃO. AF_12/2015 (BRANCO) | C135: SINAPI | D135: 91925 | E135: m | F135: =[2]ORÇAMENTO!$F$89 -> 46.7 | G135: =[2]ORÇAMENTO!$G$89 -> 2.29 | H135: 106.943 | I135: =H135/$H$177 -> 0.0001986944203 | J135: 0.9975079297 | K135: 126 | L135: C
A136: 9.39 | B136: Disjuntor termomagnetico tripolar 63 A, padrão DIN (Europeu - linha branca), curva C | C136: COMPOSIÇÃO | D136: 116 | E136: und | F136: =[2]ORÇAMENTO!$F$112 -> 1 | G136: =[2]ORÇAMENTO!$G$112 -> 91.96 | H136: 91.96 | I136: =H136/$H$177 -> 0.0001708568012 | J136: 0.9976787865 | K136: 127 | L136: C
A137: 10.2.4 | B137: Fornecimento e colocação de gancho com bucha 4,4 x 70 - 8mm | C137: COMPOSIÇÃO | D137: 154 | E137: und | F137: =[2]ORÇAMENTO!$F$139 -> 9 | G137: =[2]ORÇAMENTO!$G$139 -> 8.754 | H137: 78.786 | I137: =H137/$H$177 -> 0.0001463802081 | J137: 0.9978251667 | K137: 128 | L137: C
A138: 9.17 | B138: CABO DE COBRE FLEXÍVEL ISOLADO, 1,5 MM², ANTI-CHAMA 0,6/1,0 KV, PARA CIRCUITOS TERMINAIS - FORNECIMENTO E INSTALAÇÃO. AF_12/2015 (VERMELHO OU PRETO) | C138: SINAPI | D138: 91925 | E138: m | F138: =[2]ORÇAMENTO!$F$90 -> 34.1 | G138: =[2]ORÇAMENTO!$G$90 -> 2.29 | H138: 78.089 | I138: =H138/$H$177 -> 0.0001450852191 | J138: 0.997970252 | K138: 129 | L138: C
A139: 2.2.11 | B139: Demolicao de alvenaria de tijolos macicos s/reaproveitamento (Faixa de calçada para alocação da tubulação de esgoto) | C139: COMPOSIÇÃO | D139: 109 | E139: m³ | F139: =[2]ORÇAMENTO!$F$30 -> 1.29 | G139: =[2]ORÇAMENTO!$G$30 -> 54.128 | H139: 69.82512 | I139: =H139/$H$177 -> 0.0001297313685 | J139: 0.9980999833 | K139: 130 | L139: C
A140: 10.2.5 | B140: Barra de apoio em aço inox polido, l=50, d=38.1 mm | C140: ORSE | D140: 2391 | E140: und | F140: =[2]ORÇAMENTO!$F$140 -> 1 | G140: =[2]ORÇAMENTO!$G$140 -> 68.39 | H140: =F140*G140 -> 68.39 | I140: 0.0001270649916 | J140: =I140+J139 -> 0.9982270483 | K140: 131 | L140: C
A141: 9.38 | B141: DISJUNTOR TERMOMAGNÉTICO TRIPOLAR TIPO DIN, CORRENTE NOMINAL DE 20A - FORNECIMENTO E INSTALAÇÃO. AF_04/2016 | C141: SINAPI | D141: 93669 | E141: und | F141: =[2]ORÇAMENTO!$F$111 -> 1 | G141: =[2]ORÇAMENTO!$G$111 -> 68.06 | H141: 68.06 | I141: =H141/$H$177 -> 0.0001264518692 | J141: 0.9983535002 | K141: 132 | L141: C
A142: 9.6 | B142: TOMADA MÉDIA DE EMBUTIR (1 MÓDULO), 2P+T 10 A, INCLUINDO SUPORTE E PLACA - FORNECIMENTO E INSTALAÇÃO. AF_12/2015 | C142: SINAPI | D142: 91996 | E142: und | F142: =[2]ORÇAMENTO!$F$79 -> 3 | G142: =[2]ORÇAMENTO!$G$79 -> 22.62 | H142: 67.86 | I142: 0.0001260802798 | J142: 0.9984795805 | K142: 133 | L142: C
A143: 5.3 | B143: MONTAGEM E DESMONTAGEM DE FÔRMA DE VIGA, ESCORAMENTO METÁLICO, PÉ-DIREITO SIMPLES, EM CHAPA DE MADEIRA RESINADA, 2 UTILIZAÇÕES. AF_12/2015 | C143: SINAPI | D143: 92452 | E143: m² | F143: =[2]ORÇAMENTO!$F$46 -> 0.72 | G143: =[2]ORÇAMENTO!$G$46 -> 91.61 | H143: 65.9592 | I143: 0.0001225486942 | J143: 0.9986021292 | K143: 134 | L143: C
A144: 12.13 | B144: Placa direção saída de emergência Fotoluminescente Sinalize Seta Reta P/ Esquerda 30x15cm | C144: COTAÇÃO | D144: 4 | E144: und | F144: =[2]ORÇAMENTO!$F$168 -> 4 | G144: =[2]ORÇAMENTO!$G$168 -> 15.71 | H144: 62.84 | I144: 0.0001167533861 | J144: 0.9987188826 | K144: 135 | L144: C
A145: 10.1.2 | B145: TUBO, PVC, SOLDÁVEL, DN 25MM, INSTALADO EM RAMAL OU SUB-RAMAL DE ÁGUA - FORNECIMENTO E INSTALAÇÃO. AF_12/2014_P | C145: SINAPI | D145: 89356 | E145: m | F145: =[2]ORÇAMENTO!$F$125 -> 4.1 | G145: =[2]ORÇAMENTO!$G$125 -> 15.25 | H145: 62.525 | I145: 0.0001161681328 | J145: 0.9988350507 | K145: 136 | L145: C
A146: 9.2 | B146: CAIXA RETANGULAR 4" X 2" MÉDIA (1,30 M DO PISO), PVC, INSTALADA EM PAREDE - FORNECIMENTO E INSTALAÇÃO. AF_12/2015 | C146: SINAPI | D146: 91940 | E146: und | F146: =[2]ORÇAMENTO!$F$75 -> 6 | G146: =[2]ORÇAMENTO!$G$75 -> 10.32 | H146: 61.92 | I146: 0.0001150440749 | J146: 0.9989500948 | K146: 137 | L146: C
A147: 9.29 | B147: CABO DE COBRE FLEXÍVEL ISOLADO, 16 MM², ANTI-CHAMA 0,6/1,0 KV, PARA CIRCUITOS TERMINAIS - FORNECIMENTO E INSTALAÇÃO. AF_12/2015 (VERMELHO OU PRETO) | C147: SINAPI | D147: 91935 | E147: m | F147: =[2]ORÇAMENTO!$F$102 -> 3.9 | G147: =[2]ORÇAMENTO!$G$102 -> 13.77 | H147: 53.703 | I147: 9.977732485e-05 | J147: 0.9990498721 | K147: 138 | L147: C
A148: 9.35 | B148: DISJUNTOR MONOPOLAR TIPO DIN, CORRENTE NOMINAL DE 16A - FORNECIMENTO E INSTALAÇÃO. AF_04/2016 | C148: SINAPI | D148: 93654 | E148: und | F148: =[2]ORÇAMENTO!$F$108 -> 4 | G148: =[2]ORÇAMENTO!$G$108 -> 10.54 | H148: 42.16 | I148: 7.833104325e-05 | J148: 0.9991282031 | K148: 139 | L148: C
A149: 9.7 | B149: TOMADA MÉDIA DE EMBUTIR (2 MÓDULOS), 2P+T 10 A, INCLUINDO SUPORTE E PLACA - FORNECIMENTO E INSTALAÇÃO. AF_12/2015 | C149: SINAPI | D149: 92004 | E149: und | F149: =[2]ORÇAMENTO!$F$80 -> 1 | G149: =[2]ORÇAMENTO!$G$80 -> 37.29 | H149: 37.29 | I149: 6.928284162e-05 | J149: 0.999197486 | K149: 140 | L149: C
A150: 2.2.9 | B150: Remoção de cortinas | C150: COMPOSIÇÃO | D150: 107 | E150: und | F150: =[2]ORÇAMENTO!$F$28 -> 3 | G150: =[2]ORÇAMENTO!$G$28 -> 12 | H150: 36 | I150: 6.688609006e-05 | J150: 0.9992643721 | K150: 141 | L150: C
A151: 10.1.3 | B151: REGISTRO DE GAVETA COM CANOPLA Ø 25MM (1) - FORNECIMENTO E INSTALAÇÃO | C151: SINAPI | D151: 89353 | E151: und | F151: =[2]ORÇAMENTO!$F$126 -> 1 | G151: =[2]ORÇAMENTO!$G$126 -> 32.58 | H151: 32.58 | I151: 6.053191151e-05 | J151: 0.999324904 | K151: 142 | L151: C
A152: 9.10 | B152: INTERRUPTOR SIMPLES (2 MÓDULOS), 10A/250V, INCLUINDO SUPORTE E PLACA -FORNECIMENTO E INSTALAÇÃO. AF_12/2015 | C152: SINAPI | D152: 91959 | E152: und | F152: =[2]ORÇAMENTO!$F$83 -> 1 | G152: =[2]ORÇAMENTO!$G$83 -> 30.23 | H152: 30.23 | I152: 5.616573618e-05 | J152: 0.9993810697 | K152: 143 | L152: C
A153: 10.1.11 | B153: REGISTRO DE ESFERA, PVC, SOLDÁVEL, DN 32 MM, INSTALADO EM RESERVAÇÃO DE ÁGUA DE EDIFICAÇÃO QUE POSSUA RESERVATÓRIO DE FIBRA/FIBROCIMENTO FORNECIMENTO E INSTALAÇÃO. AF_06/2016 | C153: SINAPI | D153: 94490 | E153: und | F153: =[2]ORÇAMENTO!$F$134 -> 1 | G153: =[2]ORÇAMENTO!$G$134 -> 28.72 | H153: 28.72 | I153: 5.336023629e-05 | J153: 0.9994344299 | K153: 144 | L153: C
A154: 10.3.1 | B154: JOELHO 90 GRAUS, PVC, SERIE NORMAL, ESGOTO PREDIAL, DN 40 MM, JUNTA SOLDÁVEL, FORNECIDO E INSTALADO EM RAMAL DE DESCARGA OU RAMAL DE ESGOTO SANITÁRIO. AF_12/2014_P | C154: SINAPI | D154: 89724 | E154: und | F154: =[2]ORÇAMENTO!$F$144 -> 5 | G154: =[2]ORÇAMENTO!$G$144 -> 5.23 | H154: 26.15 | I154: 4.858531264e-05 | J154: 0.9994830153 | K154: 145 | L154: C
A155: 5.5 | B155: ARMAÇÃO DE PILAR OU VIGA DE UMA ESTRUTURA CONVENCIONAL DE CONCRETO ARMADO EM UM EDIFÍCIO DE MÚLTIPLOS PAVIMENTOS UTILIZANDO AÇO CA-50 DE 8.0 MM - MONTAGEM. AF_12/2015 | C155: SINAPI | D155: 92761 | E155: kg | F155: =[2]ORÇAMENTO!$F$48 -> 3 | G155: =[2]ORÇAMENTO!$G$48 -> 8.52 | H155: 25.56 | I155: 4.748912394e-05 | J155: 0.9995305044 | K155: 146 | L155: C
A156: 12.14 | B156: Placa sinalizadora saída de emergência - Final Fotoluminescente 30x15cm | C156: COTAÇÃO | D156: 5 | E156: und | F156: =[2]ORÇAMENTO!$F$169 -> 2 | G156: =[2]ORÇAMENTO!$G$169 -> 12.76333333 | H156: 25.52666667 | I156: 4.742719238e-05 | J156: 0.9995779316 | K156: 147 | L156: C
A157: 9.36 | B157: DISJUNTOR MONOPOLAR TIPO DIN, CORRENTE NOMINAL DE 20A - FORNECIMENTO E INSTALAÇÃO. AF_04/2016 | C157: SINAPI | D157: 93655 | E157: und | F157: =[2]ORÇAMENTO!$F$109 -> 2 | G157: =[2]ORÇAMENTO!$G$109 -> 11.28 | H157: 22.56 | I157: 4.191528311e-05 | J157: 0.9996198469 | K157: 148 | L157: C
A158: 9.9 | B158: INTERRUPTOR SIMPLES (1 MÓDULO), 10A/250V, INCLUINDO SUPORTE E PLACA -FORNECIMENTO E INSTALAÇÃO. AF_12/2015 | C158: SINAPI | D158: 91953 | E158: und | F158: =[2]ORÇAMENTO!$F$82 -> 1 | G158: =[2]ORÇAMENTO!$G$82 -> 19.08 | H158: 19.08 | I158: 3.544962773e-05 | J158: 0.9996552965 | K158: 149 | L158: C
A159: 9.28 | B159: CABO DE COBRE FLEXÍVEL ISOLADO, 16 MM², ANTI-CHAMA 0,6/1,0 KV, PARA CIRCUITOS TERMINAIS - FORNECIMENTO E INSTALAÇÃO. AF_12/2015 (AZUL CLARO) | C159: SINAPI | D159: 91935 | E159: m | F159: =[2]ORÇAMENTO!$F$101 -> 1.3 | G159: =[2]ORÇAMENTO!$G$101 -> 13.77 | H159: 17.901 | I159: 3.325910828e-05 | J159: 0.9996885556 | K159: 150 | L159: C
A160: 9.30 | B160: CABO DE COBRE FLEXÍVEL ISOLADO, 16 MM², ANTI-CHAMA 0,6/1,0 KV, PARA CIRCUITOS TERMINAIS - FORNECIMENTO E INSTALAÇÃO. AF_12/2015 (VERDE OU VERDE-AMARELO) | C160: SINAPI | D160: 91935 | E160: m | F160: =[2]ORÇAMENTO!$F$103 -> 1.3 | G160: =[2]ORÇAMENTO!$G$103 -> 13.77 | H160: 17.901 | I160: 3.325910828e-05 | J160: 0.9997218147 | K160: 151 | L160: C
A161: 10.1.6 | B161: JOELHO 90 GRAUS, PVC, SOLDÁVEL, DN 32MM, INSTALADO EM RAMAL DE DISTRIBUIÇÃO DE ÁGUA - FORNECIMENTO E INSTALAÇÃO. AF_12/2014_P | C161: SINAPI | D161: 89413 | E161: und | F161: =[2]ORÇAMENTO!$F$129 -> 3 | G161: =[2]ORÇAMENTO!$G$129 -> 5.6 | H161: 16.8 | I161: 3.12135087e-05 | J161: 0.9997530282 | K161: 152 | L161: C
A162: 9.26 | B162: CABO DE COBRE FLEXÍVEL ISOLADO, 6 MM², ANTI-CHAMA 0,6/1,0 KV, PARA CIRCUITOS TERMINAIS - FORNECIMENTO E INSTALAÇÃO. AF_12/2015 (VERMELHO OU PRETO) | C162: SINAPI | D162: 91931 | E162: m | F162: =[2]ORÇAMENTO!$F$99 -> 2.7 | G162: =[2]ORÇAMENTO!$G$99 -> 5.78 | H162: 15.606 | I162: 2.899512004e-05 | J162: 0.9997820233 | K162: 153 | L162: C
A163: 10.1.10 | B163: ADAPTADOR COM FLANGE E ANEL DE VEDAÇÃO, PVC, SOLDÁVEL, DN 32 MM X 1 , INSTALADO EM RESERVAÇÃO DE ÁGUA DE EDIFICAÇÃO QUE POSSUA RESERVATÓRIO DE FIBRA/FIBROCIMENTO FORNECIMENTO E INSTALAÇÃO. AF_06/2016 | C163: SINAPI | D163: 94704 | E163: und | F163: =[2]ORÇAMENTO!$F$133 -> 1 | G163: =[2]ORÇAMENTO!$G$133 -> 15.44 | H163: 15.44 | I163: 2.868670085e-05 | J163: 0.99981071 | K163: 154 | L163: C
A164: 5.2 | B164: Concretagem de vigas com concreto simples com preparo mecânico em betoneira de 400 L, fck=25mpa, inclui lançamento, adensamento e acabamento (cintas para apoio da laje da entrada principal do auditório) | C164: COMPOSIÇÃO | D164: 123 | E164: m³ | F164: =[2]ORÇAMENTO!$F$45 -> 0.03 | G164: =[2]ORÇAMENTO!$G$45 -> 467.90851 | H164: 14.0372553 | I164: 2.608047562e-05 | J164: 0.9998367905 | K164: 155 | L164: C
A165: 10.2.2 | B165: ENGATE FLEXÍVEL EM PLÁSTICO BRANCO, 1/2" X 30CM - FORNECIMENTO E INSTALAÇÃO. AF_12/2013 | C165: SINAPI | D165: 86884 | E165: und | F165: =[2]ORÇAMENTO!$F$137 -> 2 | G165: =[2]ORÇAMENTO!$G$137 -> 6.34 | H165: 12.68 | I165: 2.355876728e-05 | J165: 0.9998603493 | K165: 156 | L165: C
A166: 10.1.5 | B166: JOELHO 90 GRAUS COM BUCHA DE LATÃO, PVC, SOLDÁVEL, DN 25MM, X 3/4" INSTALADO EM RAMAL OU SUB-RAMAL DE ÁGUA - FORNECIMENTO E INSTALAÇÃO. AF_12/2014_P | C166: SINAPI | D166: 89366 | E166: und | F166: =[2]ORÇAMENTO!$F$128 -> 1 | G166: =[2]ORÇAMENTO!$G$128 -> 10.11 | H166: 10.11 | I166: 1.878384363e-05 | J166: 0.9998791331 | K166: 157 | L166: C
A167: 10.1.7 | B167: TÊ COM BUCHA DE LATÃO NA BOLSA CENTRAL, PVC, SOLDÁVEL, DN 25 MM X 3/4 , INSTALADO EM RESERVAÇÃO DE ÁGUA DE EDIFICAÇÃO QUE POSSUA RESERVATÓRIO DE FIBRA/FIBROCIMENTO FORNECIMENTO E INSTALAÇÃO. AF_06/2016 | C167: SINAPI | D167: 94689 | E167: und | F167: =[2]ORÇAMENTO!$F$130 -> 1 | G167: =[2]ORÇAMENTO!$G$130 -> 9.9 | H167: 9.9 | I167: 1.839367477e-05 | J167: 0.9998975268 | K167: 158 | L167: C
A168: 5.4 | B168: ARMAÇÃO DE PILAR OU VIGA DE UMA ESTRUTURA CONVENCIONAL DE CONCRETO ARMADO EM UM EDIFÍCIO DE MÚLTIPLOS PAVIMENTOS UTILIZANDO AÇO CA-60 DE 5,0MM - MONTAGEM. AF_12/2015 | C168: SINAPI | D168: 92759 | E168: kg | F168: =[2]ORÇAMENTO!$F$47 -> 1 | G168: =[2]ORÇAMENTO!$G$47 -> 9.43 | H168: 9.43 | I168: 1.75204397e-05 | J168: 0.9999150472 | K168: 159 | L168: C
A169: 10.1.9 | B169: ADAPTADOR CURTO COM BOLSA E ROSCA PARA REGISTRO, PVC, SOLDÁVEL, DN 25MM X 3/4, INSTALADO EM RAMAL OU SUB-RAMAL DE ÁGUA - FORNECIMENTO E INSTALAÇÃO. AF_12/2014 TALAÇÃO. AF_12/2014 | C169: SINAPI | D169: 89383 | E169: und | F169: =[2]ORÇAMENTO!$F$132 -> 2 | G169: =[2]ORÇAMENTO!$G$132 -> 4.41 | H169: 8.82 | I169: 1.638709207e-05 | J169: 0.9999314343 | K169: 160 | L169: C
A170: 10.3.6 | B170: JUNÇÃO SIMPLES, PVC, SERIE NORMAL, ESGOTO PREDIAL, DN 40 MM, JUNTA SOLDÁVEL, FORNECIDO E INSTALADO EM RAMAL DE DESCARGA OU RAMAL DE ESGOTO SANITÁRIO. AF_12/2014 | C170: SINAPI | D170: 89783 | E170: und | F170: =[2]ORÇAMENTO!$F$149 -> 1 | G170: =[2]ORÇAMENTO!$G$149 -> 7.91 | H170: 7.91 | I170: 1.469636034e-05 | J170: 0.9999461307 | K170: 161 | L170: C
A171: 10.3.4 | B171: RALO SIFONADO, PVC, DN 100 X 40 MM, JUNTA SOLDÁVEL, FORNECIDO E INSTALADO EM RAMAL DE DESCARGA OU EM RAMAL DE ESGOTO SANITÁRIO. AF_12/2014_P | C171: SINAPI | D171: 89709 | E171: und | F171: =[2]ORÇAMENTO!$F$147 -> 1 | G171: =[2]ORÇAMENTO!$G$147 -> 7.08 | H171: 7.08 | I171: 1.315426438e-05 | J171: 0.999959285 | K171: 162 | L171: C
A172: 10.1.4 | B172: JOELHO 90 GRAUS, PVC, SOLDÁVEL, DN 25MM, INSTALADO EM RAMAL OU SUB-RAMAL DE ÁGUA - FORNECIMENTO E INSTALAÇÃO. AF_12/2014_P | C172: SINAPI | D172: 89362 | E172: und | F172: =[2]ORÇAMENTO!$F$127 -> 1 | G172: =[2]ORÇAMENTO!$G$127 -> 6.06 | H172: 6.06 | I172: 1.125915849e-05 | J172: 0.9999705441 | K172: 163 | L172: C
A173: 10.1.8 | B173: LUVA DE REDUÇÃO, PVC, SOLDÁVEL, DN 32MM X 25MM, INSTALADO EM RAMAL OU SUB-RAMAL DE ÁGUA - FORNECIMENTO E INSTALAÇÃO. AF_12/2014 | C173: SINAPI | D173: 89380 | E173: und | F173: =[2]ORÇAMENTO!$F$131 -> 1 | G173: =[2]ORÇAMENTO!$G$131 -> 5.45 | H173: 5.45 | I173: 1.012581086e-05 | J173: 0.9999806699 | K173: 164 | L173: C
A174: 9.25 | B174: CABO DE COBRE FLEXÍVEL ISOLADO, 6 MM², ANTI-CHAMA 0,6/1,0 KV, PARA CIRCUITOS TERMINAIS - FORNECIMENTO E INSTALAÇÃO. AF_12/2015 (AZUL CLARO) | C174: SINAPI | D174: 91931 | E174: m | F174: =[2]ORÇAMENTO!$F$98 -> 0.9 | G174: =[2]ORÇAMENTO!$G$98 -> 5.78 | H174: 5.202 | I174: 9.665040014e-06 | J174: 0.999990335 | K174: 165 | L174: C
A175: 9.27 | B175: CABO DE COBRE FLEXÍVEL ISOLADO, 6 MM², ANTI-CHAMA 0,6/1,0 KV, PARA CIRCUITOS TERMINAIS - FORNECIMENTO E INSTALAÇÃO. AF_12/2015 (VERDE OU VERDE-AMARELO) | C175: SINAPI | D175: 91931 | E175: m | F175: =[2]ORÇAMENTO!$F$100 -> 0.9 | G175: =[2]ORÇAMENTO!$G$100 -> 5.78 | H175: 5.202 | I175: 9.665040014e-06 | J175: 1 | K175: 166 | L175: C
A177: CUSTO DE REFERÊNCIA DA OBRA (R$) | H177: =SUM(H10:H175) -> 538228.5011 | I177: =SUM(I10:I175) -> 1 | K177: =K175 -> 166 | L177: Itens
A178: BDI SOBRE O CUSTO DA OBRA (REFERÊNCIA) (27,00%) (R$) | H178: =0.27*H177 -> 145321.6953
A179: PREÇO TOTAL DE REFERÊNCIA DA OBRA (R$) | H179: =SUM(H177:H178) -> 683550.1964
B184: Referência: Orse - Junho /2016 e Sinapi - Junho /2016
B186: ____________________________________________
B187: Carlos Wilson da Silva Diniz
B188: Engenheiro Civil - DIP/GPOS/SINFRA/UFAL
B189: Siape Nº 2222799
B193: Maceió, ____ de ______________ de______
H204: CLASSE A | I204: Todos os itens, organizados em ordem decrescente de valor, que somados alcançem um percentual de aproximadamente 80% do valor total da obra
H210: CLASSE B | I210: Todos os itens, organizados em ordem decrescente de valor, que somados alcançem um percentual de aproximadamente 15% do valor total da obra
H217: CLASSE C | I217: Todos os itens, organizados em ordem decrescente de valor, que somados alcançem um percentual de aproximadamente 5% do valor total da obra
